fUST/lending_fUST_20251020
["ID","MTS","AMOUNT","RATE_DAILY","PERIOD"]
[391894103,1760961040237,-500.0,0.00024973,2]
[391894105,1760961040246,-354.38293866,0.0002498,2]
[391894107,1760961040255,-100000.0,0.0002499,2]
[391894109,1760961040264,-177.19146933,0.0002499,2]
[391894111,1760961040273,-1220.8456855,0.00024997,2]
[391894113,1760961040283,-1772.0,0.00024998,2]
[391894115,1760961040291,-500.0,0.00024998,2]
[391894117,1760961040301,-561.0,0.00024998,2]
[391894120,1760961040311,-151.0,0.00024998,2]
[391894122,1760961040320,-500.0,0.00024998,2]
[391894124,1760961040330,-152.29305162,0.00024998,2]
[391894126,1760961040339,-151.56260228,0.00024998,2]
[391894128,1760961040348,-500.0,0.00024998,2]
[391894130,1760961040357,-151.0,0.00024998,2]
[391894132,1760961040367,-500.0,0.00024998,2]
[391894134,1760961040376,-500.0,0.00024998,2]
[391894136,1760961040385,-249.29810661,0.00024998,2]
[391894138,1760961040395,-500.0,0.00024998,2]
[391894140,1760961040404,-500.0,0.00024998,2]
[391894142,1760961040413,-151.0,0.00024998,2]
[391894144,1760961040422,-151.0,0.00024998,2]
[391894146,1760961040431,-500.0,0.00024998,2]
[391894148,1760961040440,-500.0,0.00024998,2]
[391894150,1760961040449,-500.0,0.00024998,2]
[391894152,1760961040458,-455.51114859,0.00024998,2]
[391894154,1760961040467,-25000.0,0.00025,2]
[391894167,1760961040577,-242.22859,0.00025,2]
[391894169,1760961040588,-212.10558,0.00025,2]
[391894171,1760961040598,-151.0,0.00025,5]
[391894173,1760961040608,-184.1055313,0.00025025,2]
[391894175,1760961040618,-177.19146933,0.00025044,2]
[391894177,1760961040627,-1772.0,0.00025052,2]
[391894179,1760961040636,-500.0,0.00025052,2]
[391894180,1760961040645,-561.0,0.00025052,2]
[391894182,1760961040654,-190.26783446,0.00025052,2]
[391894184,1760961040664,-349.85739787,0.00025052,2]
[391894186,1760961040674,-500.0,0.00025052,2]
[391894188,1760961040685,-202.35749936,0.00025052,2]
[391894190,1760961040695,-500.0,0.00025052,2]
[391894192,1760961040704,-456.36142473,0.00025052,2]
[391894194,1760961040715,-500.0,0.00025052,2]
[391894195,1760961040723,-500.0,0.00025052,2]
[391894196,1760961040733,-151.0,0.00025052,2]
[391894197,1760961040742,-199.93893208,0.00025052,2]
[391894199,1760961040751,-500.0,0.00025052,2]
[391894201,1760961040760,-500.0,0.00025052,2]
[391894203,1760961040769,-500.0,0.00025052,2]
[391894205,1760961040778,-18566.02701182,0.00025054,2]
[391894207,1760961040787,-500.0,0.0002506,2]
[391894208,1760961040796,-500.0,0.00025061,5]
[391894209,1760961040805,-1772.0,0.00025107,2]
[391894210,1760961040814,-314.6905873,0.00025107,2]
[391894211,1760961040823,-561.0,0.00025107,2]
[391894212,1760961040833,-500.0,0.00025107,2]
[391894213,1760961040843,-500.0,0.00025107,2]
[391894214,1760961040852,-500.0,0.00025107,2]
[391894215,1760961040862,-550.4742694,0.00025107,2]
[391894216,1760961040871,-274.4352498,0.00025107,2]
[391894217,1760961040880,-500.0,0.00025107,2]
[391894218,1760961040889,-500.0,0.00025107,2]
[391894219,1760961040898,-500.0,0.00025107,2]
[391894220,1760961040907,-1772.0,0.00025162,2]
[391894222,1760961040916,-561.0,0.00025162,2]
[391894223,1760961040926,-500.0,0.00025162,2]
[391894225,1760961040936,-524.91923794,0.00025162,2]
[391894227,1760961040945,-500.0,0.00025162,2]
[391894229,1760961040954,-500.0,0.00025162,2]
[391894231,1760961040963,-500.0,0.00025162,2]
[391894233,1760961040973,-500.0,0.00025162,2]
[391894234,1760961040983,-18566.02701182,0.00025172,2]
[391894235,1760961040992,-1772.0,0.00025217,2]
[391894236,1760961041001,-561.0,0.00025217,2]
[391894237,1760961041010,-500.0,0.00025217,2]
[391894238,1760961041019,-500.0,0.00025217,2]
[391894239,1760961041028,-165.85092125,0.00025217,2]
[391894240,1760961041037,-500.0,0.00025217,2]
[391894241,1760961041053,-500.0,0.00025217,2]
[391894242,1760961041063,-1000.0,0.00025221,2]
[391894243,1760961041073,-1000.0,0.00025221,2]
[391894244,1760961041083,-261.40251625,0.00025221,2]
[391894245,1760961041093,-1000.0,0.00025221,2]
[391894246,1760961041103,-1000.0,0.00025221,2]
[391894247,1760961041113,-1000.0,0.00025221,2]
[391894248,1760961041123,-1000.0,0.00025221,2]
[391894249,1760961041134,-1000.0,0.00025221,2]
[391894250,1760961041143,-1000.0,0.00025221,2]
[391894251,1760961041153,-1000.0,0.00025221,2]
[391894252,1760961041163,-1000.0,0.00025221,2]
[391894253,1760961041173,-1772.0,0.00025272,2]
[391894254,1760961041183,-561.0,0.00025272,2]
[391894255,1760961041194,-503.29527612,0.00025272,2]
[391894256,1760961041204,-500.0,0.00025272,2]
[391894257,1760961041215,-500.0,0.00025272,2]
[391894258,1760961041225,-500.0,0.00025272,2]
[391894259,1760961041236,-172.5,0.00025277,2]
[391894260,1760961041245,-177.19146933,0.00025311,2]
[391894261,1760961041256,-1772.0,0.00025326,2]
[391894262,1760961041266,-561.0,0.00025326,2]
[391894263,1760961041279,-304.16799581,0.00025326,2]
[391894264,1760961041288,-500.0,0.00025326,2]
[391894265,1760961041297,-500.0,0.00025326,2]
[391894266,1760961041306,-500.0,0.00025334,2]
[391894267,1760961041316,-500.0,0.00025335,5]
[391894268,1760961041326,-1772.0,0.00025381,2]
[391894269,1760961041335,-561.0,0.00025381,2]
[391894270,1760961041345,-500.0,0.00025381,2]
[391894271,1760961041354,-294.96080455,0.00025381,2]
[391894272,1760961041363,-1772.0,0.00025436,2]
[391894273,1760961041372,-561.0,0.00025436,2]
[391894274,1760961041381,-500.0,0.00025436,2]
[391894275,1760961041391,-1772.0,0.00025491,2]
[391894276,1760961041400,-561.0,0.00025491,2]
[391894277,1760961041410,-500.0,0.00025491,2]
[391894278,1760961041419,-1000.0,0.00025521,2]
[391894279,1760961041428,-1000.0,0.00025521,2]
[391894280,1760961041437,-1000.0,0.00025521,2]
[391894281,1760961041446,-442.97174692,0.00025521,2]
[391894282,1760961041456,-1000.0,0.00025521,2]
[391894283,1760961041464,-685.21247534,0.00025521,2]
[391894284,1760961041474,-1000.0,0.00025521,2]
[391894285,1760961041482,-1000.0,0.00025521,2]
[391894286,1760961041491,-513.90856149,0.00025521,2]
[391894287,1760961041500,-570.82366199,0.00025521,2]
[391894288,1760961041510,-503.62179262,0.00025521,2]
[391894289,1760961041519,-1002.13746908,0.00025521,2]
[391894290,1760961041528,-835.50537354,0.00025521,2]
[391894291,1760961041537,-514.52470429,0.00025521,2]
[391894292,1760961041546,-933.28505328,0.00025521,2]
[391894293,1760961041555,-1000.0,0.00025521,2]
[391894294,1760961041564,-519.77062949,0.00025521,2]
[391894295,1760961041573,-1000.0,0.00025521,2]
[391894296,1760961041582,-500.0,0.00025521,2]
[391894297,1760961041592,-1004.55243322,0.00025521,2]
[391894298,1760961041601,-1000.0,0.00025521,2]
[391894299,1760961041610,-1772.0,0.00025546,2]
[391894300,1760961041619,-561.0,0.00025546,2]
[391894301,1760961041628,-627.97632628,0.00025546,2]
[391894302,1760961041638,-242.22859,0.00025574,2]
[391894303,1760961041649,-212.10558,0.00025574,2]
[391894304,1760961041658,-1772.0,0.000256,2]
[391894305,1760961041668,-561.0,0.000256,2]
[391894306,1760961041678,-500.0,0.00025608,2]
[391894307,1760961041687,-500.0,0.00025609,5]
[391894308,1760961041697,-1772.0,0.00025655,2]
[391894309,1760961041706,-561.0,0.00025655,2]
[391894310,1760961041715,-160.0,0.00025671,2]
[391894311,1760961041724,-1772.0,0.0002571,2]
[391894312,1760961041734,-561.0,0.0002571,2]
[391894313,1760961041743,-639.47144588,0.0002575,2]
[391894314,1760961041753,-500.0,0.0002575,2]
[391894315,1760961041762,-1772.0,0.00025765,2]
[391894316,1760961041771,-561.0,0.00025765,2]
[391894317,1760961041780,-1500.0,0.00025768,2]
[391894318,1760961041789,-1500.0,0.00025768,2]
[391894319,1760961041798,-1500.0,0.00025768,2]
[391894320,1760961041807,-1500.0,0.00025768,2]
[391894321,1760961041816,-1500.0,0.00025768,2]
[391894322,1760961041827,-614.73920808,0.00025768,2]
[391894323,1760961041836,-1012.86416693,0.00025768,2]
[391894324,1760961041846,-1500.0,0.00025768,2]
[391894325,1760961041855,-1638.35642691,0.00025768,2]
[391894326,1760961041864,-1500.0,0.00025768,2]
[391894327,1760961041872,-1772.0,0.0002582,2]
[391894328,1760961041881,-561.0,0.0002582,2]
[391894329,1760961041891,-177.19146933,0.00025858,2]
[391894330,1760961041900,-500.0,0.00025868,2]
[391894331,1760961041909,-151.0,0.00025868,2]
[391894332,1760961041919,-151.0,0.00025868,2]
[391894333,1760961041929,-500.0,0.00025868,2]
[391894334,1760961041939,-151.0,0.00025868,2]
[391894335,1760961041950,-500.0,0.00025868,2]
[391894336,1760961041959,-500.0,0.00025868,2]
[391894337,1760961041968,-500.0,0.00025868,2]
[391894338,1760961041978,-305.36256827,0.00025868,2]
[391894339,1760961042086,-151.0,0.00025868,2]
[391894340,1760961042097,-500.0,0.00025868,2]
[391894341,1760961042107,-1772.0,0.00025874,2]
[391894342,1760961042116,-561.0,0.00025874,2]
[391894343,1760961042125,-195.0,0.00025877,2]
[391894344,1760961042134,-500.0,0.00025882,2]
[391894345,1760961042143,-500.0,0.00025883,5]
[391894346,1760961042152,-151.0,0.000259,18]
[391894347,1760961042161,-500.0,0.00025923,2]
[391894348,1760961042170,-151.0,0.00025923,2]
[391894349,1760961042179,-151.0,0.00025923,2]
[391894350,1760961042188,-500.0,0.00025923,2]
[391894351,1760961042197,-151.59120751,0.00025923,2]
[391894352,1760961042207,-500.0,0.00025923,2]
[391894353,1760961042216,-151.0,0.00025923,2]
[391894354,1760961042225,-500.0,0.00025923,2]
[391894355,1760961042235,-1772.0,0.00025929,2]
[391894356,1760961042243,-561.0,0.00025929,2]
[391894357,1760961042252,-152.50400688,0.00025978,2]
[391894358,1760961042260,-151.0,0.00025978,2]
[391894359,1760961042269,-151.0,0.00025978,2]
[391894360,1760961042279,-500.0,0.00025978,2]
[391894361,1760961042290,-500.0,0.00025978,2]
[391894362,1760961042300,-151.0,0.00025978,2]
[391894363,1760961042309,-500.0,0.00025978,2]
[391894364,1760961042318,-1772.0,0.00025984,2]
[391894365,1760961042327,-561.0,0.00025984,2]
[391894366,1760961042337,-2000.0,0.00026,2]
[391894367,1760961042347,-151.0,0.00026032,2]
[391894368,1760961042356,-151.0,0.00026032,2]
[391894369,1760961042365,-500.0,0.00026032,2]
[391894370,1760961042376,-500.0,0.00026032,2]
[391894371,1760961042386,-151.0,0.00026032,2]
[391894372,1760961042398,-500.0,0.00026032,2]
[391894373,1760961042407,-1772.0,0.00026039,2]
[391894374,1760961042417,-561.0,0.00026039,2]
[391894375,1760961042426,-1500.0,0.00026068,2]
[391894376,1760961042435,-1500.0,0.00026068,2]
[391894377,1760961042444,-1500.0,0.00026068,2]
[391894378,1760961042454,-591.8798605,0.00026068,2]
[391894379,1760961042465,-520.34331837,0.00026068,2]
[391894380,1760961042476,-1500.0,0.00026068,2]
[391894381,1760961042484,-1500.0,0.00026068,2]
[391894382,1760961042493,-1500.0,0.00026068,2]
[391894383,1760961042502,-177.19146933,0.00026083,2]
[391894384,1760961042512,-151.0,0.00026087,2]
[391894385,1760961042522,-151.0,0.00026087,2]
[391894386,1760961042532,-154.12276168,0.00026087,2]
[391894387,1760961042541,-152.89452512,0.00026087,2]
[391894388,1760961042551,-172.2861611,0.00026087,2]
[391894389,1760961042563,-500.0,0.00026087,2]
[391894390,1760961042572,-1772.0,0.00026093,2]
[391894391,1760961042582,-561.0,0.00026093,2]
[391894392,1760961042592,-151.0,0.000261,11]
[391894394,1760961042601,-199.88629968,0.00026142,2]
[391894396,1760961042610,-152.27320854,0.00026142,2]
[391894397,1760961042620,-500.0,0.00026142,2]
[391894398,1760961042630,-300.18,0.00026145,3]
[391894399,1760961042639,-3264.26,0.00026147,3]
[391894401,1760961042648,-1632.14,0.00026147,3]
[391894403,1760961042658,-816.06,0.00026147,3]
[391894405,1760961042668,-408.04,0.00026147,3]
[391894407,1760961042678,-978.34,0.00026147,3]
[391894409,1760961042688,-489.16,0.00026147,3]
[391894411,1760961042697,-600.36,0.00026147,3]
[391894412,1760961042707,-242.22859,0.00026148,2]
[391894413,1760961042716,-212.10558,0.00026148,2]
[391894414,1760961042726,-1784.55018946,0.00026148,2]
[391894415,1760961042743,-575.0,0.00026148,2]
[391894416,1760961042764,-500.0,0.00026156,2]
[391894417,1760961042781,-500.0,0.00026157,5]
[391894418,1760961042800,-153.71087954,0.00026197,2]
[391894419,1760961042821,-260.0,0.00026219,2]
[391894420,1760961042839,-299.93,0.00026236,2]
[391894422,1760961042857,-174.55050883,0.00026298,2]
[391894425,1760961042872,-23573.26,0.000263,7]
[391894427,1760961042888,-2000.0,0.00026316,2]
[391894431,1760961042907,-2000.0,0.00026316,2]
[391894434,1760961042928,-1350.70958409,0.00026316,2]
[391894436,1760961042941,-2000.0,0.00026316,2]
[391894439,1760961042959,-1456.65364387,0.00026316,2]
[391894442,1760961042974,-2000.0,0.00026316,2]
[391894445,1760961042990,-2000.0,0.00026316,2]
[391894447,1760961043003,-291.2925336,0.00026359,2]
[391894450,1760961043020,-180.2378969,0.00026377,2]
[391894452,1760961043035,-151.0,0.000264,14]
[391894455,1760961043054,-187.91475626,0.00026414,2]
[391894458,1760961043071,-500.0,0.0002643,2]
[391894460,1760961043087,-500.0,0.00026431,5]
[391894463,1760961043104,-217.5,0.00026477,2]
[391894466,1760961043123,-150.0,0.00026488,2]
[391894468,1760961043138,-946.45912168,0.00026616,2]
[391894471,1760961043154,-2000.0,0.00026616,2]
[391894474,1760961043169,-2000.0,0.00026616,2]
[391894476,1760961043183,-790.63311626,0.00026616,2]
[391894479,1760961043198,-401.58133939,0.00026616,2]
[391894482,1760961043213,-2000.0,0.00026616,2]
[391894484,1760961043227,-536.05463656,0.00026672,2]
[391894487,1760961043241,-151.0,0.000267,20]
[391894489,1760961043256,-500.0,0.00026704,2]
[391894492,1760961043270,-500.0,0.00026705,5]
[391894495,1760961043285,-156.588327,0.00026721,2]
[391894497,1760961043300,-242.22859,0.00026721,2]
[391894500,1760961043314,-212.10558,0.00026721,2]
[391894502,1760961043329,-1680.0,0.00026763,2]
[391894505,1760961043344,-334.0,0.00026763,2]
[391894508,1760961043359,-420.0,0.00026763,2]
[391894511,1760961043376,-300.0,0.00026763,2]
[391894513,1760961043392,-402.0,0.00026763,2]
[391894516,1760961043406,-420.0,0.00026763,2]
[391894519,1760961043421,-360.0,0.00026767,2]
[391894521,1760961043435,-160.04802683,0.00026837,2]
[391894523,1760961043449,-276.54138851,0.00026864,2]
[391894526,1760961043463,-2000.0,0.00026864,2]
[391894528,1760961043478,-1500.0,0.00026864,2]
[391894531,1760961043493,-2500.0,0.00026864,2]
[391894533,1760961043508,-542.44892007,0.00026864,2]
[391894536,1760961043523,-1680.0,0.00026884,2]
[391894539,1760961043539,-562.34537693,0.00026914,2]
[391894540,1760961043555,-500.0,0.00026978,2]
[391894541,1760961043569,-500.0,0.00026979,5]
[391894542,1760961043584,-151.0,0.00027,19]
[391894543,1760961043599,-5000.0,0.00027,2]
[391894544,1760961043614,-13277.19444917,0.00027,3]
[391894545,1760961043628,-250.0,0.00027035,2]
[391894546,1760961043643,-152.0,0.00027048,3]
[391894547,1760961043658,-330.0,0.00027048,3]
[391894548,1760961043673,-152.0,0.00027048,3]
[391894549,1760961043688,-330.0,0.00027048,3]
[391894550,1760961043702,-152.0,0.00027048,3]
[391894551,1760961043716,-330.0,0.00027048,3]
[391894552,1760961043731,-152.0,0.00027048,3]
[391894553,1760961043745,-330.0,0.00027048,3]
[391894554,1760961043760,-152.0,0.00027048,3]
[391894555,1760961043774,-330.0,0.00027048,3]
[391894556,1760961043788,-152.0,0.00027048,3]
[391894557,1760961043939,-330.0,0.00027048,3]
[391894558,1760961043962,-152.0,0.00027048,3]
[391894559,1760961043973,-152.0,0.00027048,3]
[391894560,1760961043983,-339.30269403,0.00027048,3]
[391894561,1760961043993,-152.0,0.00027048,3]
[391894562,1760961044003,-152.0,0.00027048,3]
[391894563,1760961044013,-152.0,0.00027048,3]
[391894564,1760961044022,-152.0,0.00027048,3]
[391894565,1760961044032,-152.0,0.00027048,3]
[391894566,1760961044043,-152.0,0.00027048,3]
[391894567,1760961044055,-152.0,0.00027048,3]
[391894568,1760961044065,-152.0,0.00027048,3]
[391894569,1760961044075,-152.0,0.00027048,3]
[391894570,1760961044086,-152.0,0.00027048,3]
[391894571,1760961044095,-152.0,0.00027048,3]
[391894572,1760961044105,-283.79651198,0.00027048,3]
[391894573,1760961044115,-166.0,0.00027048,3]
[391894574,1760961044125,-166.0,0.00027048,3]
[391894575,1760961044135,-240.0,0.00027077,2]
[391894576,1760961044145,-511.56144253,0.00027164,2]
[391894577,1760961044155,-2500.0,0.00027164,2]
[391894578,1760961044164,-2500.0,0.00027164,2]
[391894579,1760961044177,-151.0,0.000272,14]
[391894580,1760961044188,-500.0,0.00027252,2]
[391894581,1760961044198,-500.0,0.00027253,5]
[391894582,1760961044208,-242.22859,0.00027295,2]
[391894583,1760961044218,-212.10558,0.00027295,2]
[391894584,1760961044227,-159.607978,0.00027295,2]
[391894585,1760961044238,-480.0,0.00027315,2]
[391894586,1760961044248,-150.0,0.00027397,5]
[391894587,1760961044260,-1024.87285329,0.00027412,5]
[391894588,1760961044269,-500.0,0.000275,5]
[391894589,1760961044278,-7500.0,0.000275,2]
[391894590,1760961044289,-13277.13,0.000275,3]
[391894591,1760961044298,-500.0,0.00027526,2]
[391894592,1760961044308,-543.5,0.00027527,15]
[391894593,1760961044318,-964.89834581,0.00027564,2]
[391894594,1760961044328,-350.0,0.00027583,5]
[391894595,1760961044338,-3500.0,0.000276,2]
[391894596,1760961044349,-262.5,0.00027677,2]
[391894597,1760961044358,-1000.0,0.000277,2]
[391894598,1760961044368,-1000.0,0.000277,2]
[391894599,1760961044378,-1000.0,0.000277,2]
[391894600,1760961044389,-1000.0,0.000277,2]
[391894601,1760961044400,-1000.0,0.000277,2]
[391894602,1760961044409,-1000.0,0.000277,2]
[391894603,1760961044419,-1000.0,0.000277,2]
[391894604,1760961044429,-500.0,0.000277,5]
[391894605,1760961044439,-3000.0,0.00027712,5]
[391894606,1760961044450,-3000.0,0.00027712,5]
[391894607,1760961044461,-524.32656048,0.00027777,2]
[391894608,1760961044471,-500.0,0.000278,2]
[391894609,1760961044480,-23573.26,0.000278,7]
[391894610,1760961044491,-451.04803395,0.00027856,2]
[391894611,1760961044503,-451.04803395,0.00027856,2]
[391894612,1760961044518,-172.271,0.00027935,18]
[391894613,1760961044528,-250.0,0.00027945,5]
[391894614,1760961044539,-3000.0,0.00028,2]
[391894615,1760961044549,-451.04803395,0.00028024,4]
[391894616,1760961044559,-451.04803395,0.00028024,4]
[391894617,1760961044568,-451.04803395,0.00028024,4]
[391894618,1760961044579,-1012.22167848,0.00028036,2]
[391894619,1760961044588,-410.62875183,0.00028048,5]
[391894620,1760961044597,-500.0,0.00028074,2]
[391894621,1760961044607,-450.0,0.00028131,5]
[391894622,1760961044616,-187.91475626,0.00028155,2]
[391894623,1760961044625,-451.04803395,0.00028191,6]
[391894624,1760961044637,-451.04803395,0.00028191,6]
[391894625,1760961044646,-451.04803395,0.00028191,6]
[391894626,1760961044656,-451.04803395,0.00028191,6]
[391894627,1760961044664,-1000.0,0.00028248,5]
[391894628,1760961044673,-3500.0,0.0002826,5]
[391894629,1760961044682,-3500.0,0.0002826,5]
[391894630,1760961044691,-285.0,0.00028277,2]
[391894631,1760961044700,-161.57387509,0.00028291,5]
[391894632,1760961044709,-3500.0,0.000283,2]
[391894633,1760961044718,-500.0,0.00028348,2]
[391894634,1760961044728,-451.04803395,0.00028359,8]
[391894635,1760961044738,-451.04803395,0.00028359,8]
[391894636,1760961044747,-451.04803395,0.00028359,8]
[391894637,1760961044756,-4500.0,0.000284,2]
[391894638,1760961044767,-308.91132146,0.00028445,2]
[391894639,1760961044777,-402.9601108,0.00028446,2]
[391894640,1760961044787,-1715.37483699,0.00028458,2]
[391894641,1760961044796,-350.0,0.00028493,5]
[391894642,1760961044806,-159.97751647,0.00028513,7]
[391894643,1760961044815,-451.04803395,0.00028527,10]
[391894644,1760961044824,-451.04803395,0.00028527,10]
[391894645,1760961044834,-451.04803395,0.00028527,10]
[391894646,1760961044845,-500.0,0.00028622,2]
[391894647,1760961044855,-550.0,0.00028679,5]
[391894648,1760961044864,-1015.02448864,0.00028796,5]
[391894649,1760961044873,-4000.0,0.00028808,5]
[391894650,1760961044882,-4000.0,0.00028808,5]
[391894651,1760961044891,-288.77599065,0.00028877,2]
[391894652,1760961044901,-500.0,0.00028896,2]
[391894653,1760961044911,-1120.0,0.00029003,2]
[391894654,1760961044920,-180.0,0.00029003,2]
[391894655,1760961044930,-587.0,0.00029003,2]
[391894656,1760961044939,-4150.0218477,0.0002915,2]
[391894657,1760961044949,-1799.50520619,0.00029158,2]
[391894658,1760961044958,-932.13610752,0.00029197,2]
[391894659,1760961044968,-707.02076465,0.00029227,5]
[391894660,1760961044978,-2351.0,0.00029266,2]
[391894661,1760961044989,-2680.2731828,0.0002935,2]
[391894662,1760961044999,-3500.0,0.00029356,5]
[391894663,1760961045009,-4500.0,0.00029356,5]
[391894664,1760961045019,-23573.26,0.000294,7]
[391894665,1760961045028,-5000.0,0.00029434,2]
[391894666,1760961045039,-2647.65,0.000295,2]
[391894667,1760961045052,-1509.0,0.0002954,3]
[391894668,1760961045061,-3500.0,0.0002974,2]
[391894669,1760961045070,-5000.0,0.00029904,5]
[391894670,1760961045080,-1034.74229966,0.0003,9]
[391894671,1760961045091,-158.4,0.0003,2]
[391894672,1760961045102,-242.22859,0.0003,15]
[391894673,1760961045111,-212.10558,0.0003,15]
[391894674,1760961045123,-1000.0,0.0003,14]
[391894675,1760961045134,-7500.0,0.0003,2]
[391894676,1760961045146,-300.0,0.0003,2]
[391894677,1760961045155,-156.588327,0.0003,2]
[391894678,1760961045165,-1000.0,0.0003,4]
[391894679,1760961045174,-197.55868691,0.0003,14]
[391894680,1760961045184,-556.04037863,0.00030041,2]
[391894681,1760961045193,-925.9950394,0.00030124,2]
[391894682,1760961045204,-1720.47175548,0.00030137,120]
[391894683,1760961045213,-3859.59338323,0.00030243,2]
[391894684,1760961045224,-2811.72688467,0.0003028,2]
[391894685,1760961045233,-333.40032642,0.00030344,5]
[391894686,1760961045242,-5500.0,0.00030452,5]
[391894687,1760961045251,-177.60905158,0.00031,120]
[391894688,1760961045260,-198.7963364,0.00031,120]
[391894689,1760961045269,-270.38361439,0.00031,120]
[391894690,1760961045278,-164.42682939,0.00031,120]
[391894691,1760961045287,-10000.0,0.00031,2]
[391894692,1760961045297,-5500.0,0.00031,3]
[391894693,1760961045307,-157.686382,0.00031,2]
[391894694,1760961045316,-6000.0,0.00031,5]
[391894695,1760961045325,-324.10378621,0.00031047,2]
[391894696,1760961045336,-345.61842465,0.0003108,2]
[391894697,1760961045346,-151.0,0.000312,11]
[391894698,1760961045356,-823.0,0.00031429,2]
[391894699,1760961045365,-161.02278821,0.00031451,2]
[391894700,1760961045374,-2647.65,0.000315,2]
[391894701,1760961045383,-6500.0,0.00031548,5]
[391894702,1760961045392,-988.51622868,0.00031637,2]
[391894703,1760961045402,-960.0,0.00031858,3]
[391894704,1760961045411,-250.0,0.00031899,2]
[391894705,1760961045420,-177.60905158,0.000319,120]
[391894706,1760961045429,-198.7963364,0.000319,120]
[391894707,1760961045438,-270.38361439,0.000319,120]
[391894708,1760961045447,-23573.26,0.000319,7]
[391894709,1760961045456,-150.0,0.00031973,5]
[391894710,1760961045465,-156.588327,0.00032,2]
[391894711,1760961045475,-7500.0,0.00032,3]
[391894712,1760961045484,-300.0,0.00032,2]
[391894713,1760961045493,-156.588327,0.0003203,15]
[391894714,1760961045503,-242.22859,0.0003203,15]
[391894715,1760961045512,-212.10558,0.0003203,15]
[391894716,1760961045521,-1414.82192606,0.00032071,2]
[391894717,1760961045530,-634.79067487,0.00032096,5]
[391894718,1760961045539,-1000.0,0.00032176,2]
[391894719,1760961045548,-1000.0,0.00032176,2]
[391894720,1760961045558,-1000.0,0.00032176,2]
[391894721,1760961045568,-1000.0,0.00032176,2]
[391894722,1760961045578,-1000.0,0.00032176,2]
[391894723,1760961045588,-1000.0,0.00032176,2]
[391894724,1760961045598,-1039.57200299,0.00032176,2]
[391894725,1760961045608,-151.0,0.000322,20]
[391894726,1760961045617,-250.0,0.00032521,5]
[391894727,1760961045628,-153.0,0.00032621,2]
[391894728,1760961045638,-153.0,0.00032621,2]
[391894729,1760961045648,-153.0,0.00032621,2]
[391894730,1760961045658,-153.0,0.00032621,2]
[391894731,1760961045667,-2999.0,0.00032876,120]
[391894732,1760961045676,-982.0,0.00032881,2]
[391894733,1760961045685,-2162.0,0.00032881,2]
[391894734,1760961045694,-632.0,0.00032881,2]
[391894735,1760961045703,-411.0,0.00032881,2]
[391894736,1760961045713,-4204.0,0.00032881,2]
[391894737,1760961045723,-177.60905158,0.000329,120]
[391894738,1760961045732,-198.7963364,0.000329,120]
[391894739,1760961045742,-270.38361439,0.000329,120]
[391894740,1760961045752,-7500.0,0.00033,4]
[391894741,1760961045761,-157.686382,0.00033,2]
[391894742,1760961045770,-300.0,0.00033,2]
[391894744,1760961045779,-350.0,0.00033068,5]
[391894745,1760961045789,-151.0,0.000331,19]
[391894746,1760961045799,-2647.65,0.000331,14]
[391894747,1760961045808,-177.24960773,0.000332,117]